Cogmind - Beta 14 @@@ ROGUE MODE // 2025.01.03 @ 21:35:39 Player: Cog on my mind Result: Destroyed by G-47 Trooper with Particle Gun Performance ------------- Evolutions (1) 500 Regions Visited (6) 1200 Robots Destroyed (53) 265 Value Destroyed (1122) 1122 Prototype IDs (27) 540 Alien Tech Used (0) 0 Bonus (258) 258 TOTAL SCORE: 3885 Bonus ------- Aligned with FarCom 300 Friendly Fire -42 Cogmind --------- Core Integrity 0/400 Matter 234/300 Energy 280/280 System Corruption 6% Temperature Cool (14) Movement Rolling (101) Ox1 Location -8/Mines Parts ------- > --- POWER (1) -------- Cooled Ion Engine > --- PROPULSION (3) --- Wheel Armored Wheel Armored Wheel > --- UTILITY (3) ------ Large Storage Unit Core Shielding Light Armor Plating > --- WEAPON (2) ------- Heavy Assault Rifle Rocket Launcher > --- INVENTORY (15) --- Cooled Ion Engine Wheel Improved Heat Sink High-capacity Matter Pod (173) Sensor Array PSU Rigger Small Laser Peak State ------------ > --- POWER ------------ Cooled Ion Engine > --- PROPULSION ------- Wheel Armored Wheel Armored Wheel > --- UTILITY ---------- Large Storage Unit Hacking Suite System Shield > --- WEAPON ----------- Small Laser Small Laser > --- INVENTORY -------- Cooled Ion Engine Improved Heat Sink Sensor Array Light Armor Plating Rocket Launcher Heavy Explosive Trap Heavy Explosive Trap [Rating: 18] Favorites ----------- Power Cooled Ion Engine Engine Cooled Ion Engine Propulsion Armored Wheel Treads Light Treads Leg Aluminum Leg Wheel Armored Wheel Hover Unit Hover Unit Utility Large Storage Unit Device Sensor Array Storage Large Storage Unit Hackware Hacking Suite Protection Core Shielding Weapon Small Laser Energy Gun Small Laser Ballistic Gun Assault Rifle Launcher Rocket Launcher Build | -11 -10 -10 -9 -9 -9 -8 ------- Run | Yrd Mat Min Mat Min Exi Min Slots Evolved 2 | . . . 2 . . . Power . | . . . . . . . Propulsion 1 | . . . 1 . . . Utility 1 | . . . 1 . . . Weapon . | . . . . . . . Parts Attached 53 | 7 2 3 25 9 4 3 Power 3 | 1 . 1 1 . . . Engine 3 | 1 . 1 1 . . . Core . | . . . . . . . Reactor . | . . . . . . . Propulsion 19 | 2 1 1 13 1 . 1 Treads 2 | . . . 2 . . . Leg 4 | . . . 4 . . . Wheel 12 | 2 1 1 6 1 . 1 Hover 1 | . . . 1 . . . Flight . | . . . . . . . Utility 11 | 2 1 . 2 4 2 . Device 3 | 1 . . . 2 . . Storage 3 | 1 1 . . . 1 . Processor . | . . . . . . . Hackware 2 | . . . 2 . . . Protection 3 | . . . . 2 1 . Artifact . | . . . . . . . Weapon 20 | 2 . 1 9 4 2 2 Energy Gun 7 | 1 . . 3 2 . 1 Energy Cannon . | . . . . . . . Ballistic Gun 7 | 1 . 1 3 1 1 . Ballistic Cannon . | . . . . . . . Launcher 6 | . . . 3 1 1 1 Special Weapon . | . . . . . . . Impact Weapon . | . . . . . . . Slashing Weapon . | . . . . . . . Piercing Weapon . | . . . . . . . Special Melee Weapon . | . . . . . . . Unidentified Prototypes 1 | . . . 1 . . . Parts Lost 15 | . 1 1 12 1 . . Power 1 | . . . 1 . . . Propulsion 10 | . 1 1 7 1 . . Utility 1 | . . . 1 . . . Weapon 3 | . . . 3 . . . Highest Loss Streak 7 | . 1 1 7 1 . . To Critical Strikes . | . . . . . . . Average Slot Usage (%) 94 | . 99 99 86 99 79 100 Engine 10 | . 14 14 8 11 11 11 Treads 1 | . . . 3 . . . Leg 2 | . . . 8 . . . Wheel 25 | . 27 27 10 32 33 33 Device 8 | . 14 14 5 8 11 . Storage 11 | . 14 14 11 11 11 11 Hackware 7 | . . . 16 8 . . Protection 4 | . . . . 4 11 22 Energy Gun 11 | . 14 . 6 21 1 10 Ballistic Gun 8 | . 14 27 13 . 1 11 Peak Build Rating 18 | 7 7 8 18 18 16 16 Average Rating 12 | 5 6 7 12 14 12 15 On Entrance 10 | . 7 7 8 18 14 16 Naked Turns . | . . . . . . . Heaviest Build 39 | 15 30 30 31 34 39 39 Greatest Support 36 | 20 20 20 36 34 34 34 Greatest Overweight (x) 4 | . 1 1 4 1 1 1 Average Overweight (x) . | . . 1 . . . 1 Largest Inventory Capacity 15 | 8 15 15 15 15 15 15 Average Capacity 14 | 7 13 15 15 15 15 15 Most Carried 10 | 2 4 10 10 7 9 7 Average Carried 5 | . 2 5 8 5 6 6 Final Capacity 15 | 8 15 15 15 15 15 15 Final Carried 8 | 2 4 8 7 4 6 7 Class Distribution -------------------- 47% | Mutant 39% | Scavenger-Mutant 13% | Hacker-Mutant Dominant Class ---------------- Mutant | -10/Materials Mutant | -10/Mines Scavenger-Mutant | -9/Materials Scavenger-Mutant | -9/Mines Mutant | -9/Exiles Mutant | -8/Mines Resources | -11 -10 -10 -9 -9 -9 -8 ----------- Run | Yrd Mat Min Mat Min Exi Min Matter Collected 1151 | 274 74 97 434 221 27 24 Remotely . | . . . . . . . Salvage Created 1508 | 66 132 90 885 314 . 21 Parts 106 | 4 8 7 60 24 . 3 Haulers Intercepted 2 | . . . 2 . . . Recyclers Shooed 2 | . . 1 1 . . . Parts Field Recycled . | . . . . . . . Retrieved Matter . | . . . . . . . Parts Self-Destructed . | . . . . . . . Prevented . | . . . . . . . Kills | -11 -10 -10 -9 -9 -9 -8 ------- Run | Yrd Mat Min Mat Min Exi Min Combat Hostiles Destroyed 30 | . 2 4 16 8 . . Guns 21 | . 2 4 10 5 . . AOE 9 | . . . 6 3 . . Classes Destroyed 13 | 2 2 1 5 3 . . Worker 8 | . . . 6 1 . 1 Builder 1 | . . . 1 . . . Tunneler 4 | 1 . . . 3 . . Hauler 2 | . . . 2 . . . Recycler 4 | 1 . . 3 . . . Mechanic 1 | . . . . 1 . . Operator 1 | . . . 1 . . . Watcher 3 | . 2 . 1 . . . Swarmer 5 | . . 3 2 . . . Grunt 21 | . 2 1 12 6 . . Duelist 1 | . . . . 1 . . Sentry 2 | . . . 2 . . . Assembled 1 | . . . . 1 . . Best Kill Streak 6 | 2 2 3 5 6 . 1 Combat Bots Only 4 | . 2 3 3 4 . . Max Kills in Single Turn 4 | 1 1 1 3 4 . 1 Gunslinging . | . . . . . . . Exploded 2 | . . . 2 2 . . Melee . | . . . . . . . Uniques/NPCs Destroyed . | . . . . . . . Combat | -11 -10 -10 -9 -9 -9 -8 -------- Run | Yrd Mat Min Mat Min Exi Min Hostile Shots Fired 176 | . 18 15 114 26 . 3 Missed 37 | . 2 2 27 6 . . Damage Taken 1870 | . 212 128 1190 261 . 79 Core 477 | . 49 16 320 70 . 22 Absorbed by Shields . | . . . . . . . Redirected to Shielding 8 | . . . . 3 . 5 Core Remaining (%) 87 | 100 . 74 . . . . Volleys Fired 146 | 5 16 12 84 27 . 2 Largest 2 | 2 2 2 2 2 . 2 Hottest 80 | 70 70 40 80 80 . 63 Shots Fired 246 | 10 32 24 128 46 . 6 Gun 228 | 10 32 24 120 37 . 5 Cannon . | . . . . . . . Launcher 18 | . . . 8 9 . 1 Special . | . . . . . . . Kinetic 117 | 5 16 24 69 . . 3 Thermal 111 | 5 16 . 51 37 . 2 Explosive 18 | . . . 8 9 . 1 Electromagnetic . | . . . . . . . Robot Hit Streak 10 | 2 6 4 10 9 . 3 Robot Miss Streak 4 | 1 2 4 4 2 . 3 Penetration Max . | . . . . . . . Secondary Targets 2 | . 1 . 1 . . . Max Gunslinging Chain 1 | . 1 . 1 . . . Shots Hit Robots 158 | 6 20 12 86 33 . 1 Core Hits 87 | 3 7 6 48 22 . 1 Critical Kills . | . . . . . . . Critical Parts Destroyed . | . . . . . . . Critical Strikes . | . . . . . . . Melee Attacks . | . . . . . . . Impact . | . . . . . . . Slashing . | . . . . . . . Piercing . | . . . . . . . Sneak Attacks . | . . . . . . . Combat Hostiles . | . . . . . . . Follow-up Attacks . | . . . . . . . Damage Inflicted 3175 | 77 260 152 1824 850 . 12 Guns 1910 | 77 260 152 1112 297 . 12 Cannons . | . . . . . . . Explosions 1265 | . . . 712 553 . . Melee . | . . . . . . . Ramming . | . . . . . . . Kinetic 984 | 13 125 152 694 . . . Thermal 926 | 64 135 . 418 297 . 12 Explosive 1265 | . . . 712 553 . . Electromagnetic . | . . . . . . . Impact . | . . . . . . . Slashing . | . . . . . . . Piercing . | . . . . . . . Highest Corruption 6 | . . . 2 6 6 6 Average Corruption 4 | . . . 2 4 6 6 Corruption Purged . | . . . . . . . Corruption Blocked . | . . . . . . . Effects 35 | . . . 2 22 7 4 Message Errors 14 | . . . 1 9 3 1 Matter Fused 1 | . . . . 1 . . Heat Flow Errors 7 | . . . . 7 . . Energy Discharges 4 | . . . . 1 2 1 Data Loss (minor) 2 | . . . . 1 1 . Data Loss (major) 2 | . . . . 2 . . Misfires 3 | . . . . 1 . 2 Alerts 1 | . . . . . 1 . Weapon Failures 1 | . . . 1 . . . Overload Shots . | . . . . . . . Overflow Damage 34 | . . . . 34 . . Projectiles . | . . . . . . . Explosions 34 | . . . . 34 . . Melee . | . . . . . . . Knockbacks . | . . . . . . . Impact . | . . . . . . . Kinetic . | . . . . . . . Secondary . | . . . . . . . Self-Inflicted Damage 44 | . . . . 14 . 30 Shots 2 | . . . . 1 . 1 Rammed . | . . . . . . . Targets Rammed . | . . . . . . . Kicked . | . . . . . . . Crushed . | . . . . . . . Highest Temperature 333 | 27 263 2 21 333 . 5 Average Temperature 71 | 12 119 2 7 82 . 5 Received Heat Transfer 996 | . 135 36 678 120 . 27 Effects 3 | . 1 . . 2 . . Interference 3 | . 1 . . 2 . . Siege Activations . | . . . . . . . Robots Corrupted . | . . . . . . . Combat Hostiles . | . . . . . . . Parts Fried . | . . . . . . . Impact Corruptions . | . . . . . . . Robots Melted . | . . . . . . . Combat Hostiles . | . . . . . . . Parts Melted 2 | . . . 1 1 . . Heat Transferred 2242 | 185 407 . 950 675 . 25 Parts Sabotaged . | . . . . . . . Parts Stolen . | . . . . . . . Parts Stripped . | . . . . . . . Power Chain Reactions . | . . . . . . . Alert | -11 -10 -10 -9 -9 -9 -8 ------- Run | Yrd Mat Min Mat Min Exi Min Peak Influence 344 | 10 136 152 344 180 . 14 Initial 133 | . 6 52 59 133 . . Average 97 | 4 82 104 148 82 . 4 Maximum Alert Level 1 | . . . 1 . . . Low Security (%) 93 | 100 100 100 76 100 . 100 Level 1 6 | . . . 23 . . . Level 2 . | . . . . . . . Level 3 . | . . . . . . . Level 4 . | . . . . . . . Level 5 . | . . . . . . . High Security . | . . . . . . . Max Security . | . . . . . . . Squads Dispatched 5 | . 2 . 2 1 . . Investigation 1 | . 1 . . . . . Extermination . | . . . . . . . Reinforcement 3 | . 1 . 2 . . . Assault 1 | . . . . 1 . . Garrison . | . . . . . . . Intercept . | . . . . . . . Searches Triggered . | . . . . . . . Construction Impeded . | . . . . . . . Haulers Reinforced . | . . . . . . . Active Scanning Responses . | . . . . . . . Cargo Convoy Interrupts . | . . . . . . . Stealth | -11 -10 -10 -9 -9 -9 -8 --------- Run | Yrd Mat Min Mat Min Exi Min Distress Signals 7 | . . . 6 1 . . Communications Jammed . | . . . . . . . Distress Signals . | . . . . . . . Times Spotted 47 | . 6 4 23 11 . 3 Peak Tracking Total 5 | . 2 3 5 4 . 3 Tactical Retreats 4 | . . . 2 2 . . Traps | -11 -10 -10 -9 -9 -9 -8 ------- Run | Yrd Mat Min Mat Min Exi Min Traps Triggered 2 | . 1 . 1 . . . Indirectly . | . . . . . . . Trap Hack Attempts . | . . . . . . . Triggered . | . . . . . . . Disarmed . | . . . . . . . Reprogrammed . | . . . . . . . Reused 4 | . . 1 1 2 . . Traps Extracted . | . . . . . . . Installed 5 | . . 1 2 2 . . Triggered 4 | . . 1 1 2 . . Most Traps Carried 5 | . . 5 4 2 . . Machines | -11 -10 -10 -9 -9 -9 -8 ---------- Run | Yrd Mat Min Mat Min Exi Min Machines Disabled 1 | . . . 1 . . . Max in Single Turn 1 | . . . 1 . . . Machines Repaired . | . . . . . . . Machines Dismantled . | . . . . . . . Machines Sabotaged . | . . . . . . . Overloaded Fab Kills . | . . . . . . . Hacking | -11 -10 -10 -9 -9 -9 -8 --------- Run | Yrd Mat Min Mat Min Exi Min Machines Accessed 5 | . 2 . 1 . 2 . Terminals 3 | . 2 . 1 . . . Fabricators . | . . . . . . . Repair Stations . | . . . . . . . Recycling Units . | . . . . . . . Scanalyzers . | . . . . . . . Garrison Access . | . . . . . . . Total Hacks 14 | . 8 . 4 . 2 . Successful 9 | . 4 . 3 . 2 . Failed 5 | . 4 . 1 . . . Catastrophic 1 | . 1 . . . . . Database Lockouts . | . . . . . . . Manual 8 | . 5 . 2 . 1 . Terminals 12 | . 8 . 4 . . . Fabricators . | . . . . . . . Repair Stations . | . . . . . . . Recycling Units . | . . . . . . . Scanalyzers . | . . . . . . . Garrison Access . | . . . . . . . Terminal Hacks 7 | . 3 . 2 . 2 . Record 1 | . . . . . 1 . Robot Analysis 1 | . . . 1 . . . Prototype ID Bank 2 | . 2 . . . . . Alert Level 1 | . . . 1 . . . Hauler Manifests 1 | . 1 . . . . . Derelict Proto ID Bank 1 | . . . . . 1 . Fabricator Hacks . | . . . . . . . Repair Station Hacks . | . . . . . . . Recycling Unit Hacks . | . . . . . . . Scanalyzer . | . . . . . . . Garrison Access Hacks . | . . . . . . . Unauthorized Hacks 2 | . 1 . 1 . . . Terminals 2 | . 1 . 1 . . . Botnet 2 | . 1 . 1 . . . Fabricators . | . . . . . . . Repair Stations . | . . . . . . . Recycling Units . | . . . . . . . Scanalyzers . | . . . . . . . Garrison Access . | . . . . . . . Data Cores Recovered . | . . . . . . . Used . | . . . . . . . Hacking Detections 3 | . 2 . 1 . . . Full Trace Events . | . . . . . . . Feedback Events . | . . . . . . . Feedback Blocked . | . . . . . . . Robot Schematics Acquired . | . . . . . . . Robots Built . | . . . . . . . Authchips . | . . . . . . . Time . | . . . . . . . Total Robot Build Rating . | . . . . . . . Part Schematics Acquired . | . . . . . . . Parts Built . | . . . . . . . Authchips . | . . . . . . . Time . | . . . . . . . Total Part Build Rating . | . . . . . . . Parts Repaired . | . . . . . . . Time . | . . . . . . . Parts Recycled . | . . . . . . . Recycled Matter . | . . . . . . . Retrieved Matter . | . . . . . . . Retrieved Components . | . . . . . . . Parts Scanalyzed . | . . . . . . . Part Schematics Acquired . | . . . . . . . Parts Damaged . | . . . . . . . Bothacking | -11 -10 -10 -9 -9 -9 -8 ------------ Run | Yrd Mat Min Mat Min Exi Min Used RIF Installer . | . . . . . . . Robots Hacked . | . . . . . . . Non-combat . | . . . . . . . Combat . | . . . . . . . Robot Hacks Applied . | . . . . . . . Relay Couplers Released . | . . . . . . . Fabnet Peak Effective % . | . . . . . . . Robots Rewired . | . . . . . . . Allies Hacked . | . . . . . . . Hacks Repelled . | . . . . . . . Allies | -11 -10 -10 -9 -9 -9 -8 -------- Run | Yrd Mat Min Mat Min Exi Min Total Allies 3 | . . . . 3 . . Largest Group 2 | . . . . 2 2 . Highest-Rated Group 44 | . . . . 44 44 . Highest-Rated Ally 31 | . . . . 31 31 . Total Orders . | . . . . . . . Ally Attacks 2 | . . . . 2 . . Total Damage 41 | . . . . 41 . . Kills . | . . . . . . . Allies Corrupted . | . . . . . . . Allies Melted . | . . . . . . . Intel | -11 -10 -10 -9 -9 -9 -8 ------- Run | Yrd Mat Min Mat Min Exi Min Robot Analysis Total 1 | . . . 1 . . . Derelict Logs Recovered 3 | . . 1 . 2 . . Drone Launches . | . . . . . . . Drone Recoveries . | . . . . . . . Exploration | -11 -10 -10 -9 -9 -9 -8 ------------- Run | Yrd Mat Min Mat Min Exi Min Turns Passed 2791 | 70 258 306 714 1020 288 135 Spaces Moved 1792 | 52 216 267 263 618 316 60 Core 3 | 3 . . . . . . Treads 72 | . . . 72 . . . Legs 27 | . . . 27 . . . Wheels 1688 | 49 216 267 162 618 316 60 Hover 2 | . . . 2 . . . Flight . | . . . . . . . Fastest Speed 50 | 50 80 95 85 86 86 101 Average Speed 97 | 78 92 95 146 86 86 101 Slowest Speed 300 | 80 95 95 300 105 101 101 Overloaded Moves . | . . . . . . . Propulsion Burnouts . | . . . . . . . Robots Hopped . | . . . . . . . Cave-ins Triggered . | . . . . . . . Exploration Rate (%) 44 | 5 40 63 34 88 72 11 Regions Visited 6 Branch Regions 4 Pre-discovered Areas 2 | . . 1 . . 1 . Known Exits Taken . | . . . . . . . Unknown Exits Taken 6 | 1 1 1 1 1 1 . Scrap Searched 2 | . . 1 . 1 . . Spaces Dug . | . . . . . . . Terrain Destroyed 129 | . . . 42 75 . 12 Melee . | . . . . . . . Projectile . | . . . . . . . AOE 129 | . . . 42 75 . 12 Terrain Rammed . | . . . . . . . Walls Destroyed . | . . . . . . . Machines Disabled . | . . . . . . . Actions | -11 -10 -10 -9 -9 -9 -8 --------- Run | Yrd Mat Min Mat Min Exi Min Total 2576 | 67 241 295 456 1055 332 130 Wait 548 | 2 4 4 72 395 8 63 Move 1786 | 51 215 266 262 617 315 60 Hop . | . . . . . . . Pick Up 18 | 2 3 6 3 1 2 1 Fast Attach 25 | 7 . 1 15 2 . . Attach 9 | . 1 1 5 . 2 . Detach 4 | . . . 2 . 2 . Swap 19 | . 1 1 5 7 2 3 Drop 16 | . 1 3 6 4 1 1 Fire 146 | 5 16 12 84 27 . 2 Melee . | . . . . . . . Ram . | . . . . . . . Kick . | . . . . . . . Crush . | . . . . . . . Escape Stasis . | . . . . . . . Rewire . | . . . . . . . Trap 5 | . . 1 2 2 . . Miscellaneous . | . . . . . . . Route ------- -11/Scrapyard -10/Materials (discovered 2 exits: *Mat / [*Min]) -10/Mines -9/Materials -9/Mines (discovered 4 exits: [*Mat x2] / *Exi / [*Zio]) -9/Exiles -8/Mines History --------- Turn | Location | Event 16 | -11/Scrapyard | Discovered new exit (range 16) 71 | -11/Scrapyard | Entered Materials 264 | -10/Materials | Discovered new exit (range 15) 264 | -10/Materials | Discovered new exit (range 9) 313 | -10/Materials | Build established: Mutant 329 | -10/Materials | Entered Mines 333 | -10/Mines | Met a Derelict bent on vengeance 528 | -10/Mines | Discovered new exit (range 12) 529 | -10/Mines | Learned location of Storage (-7) 535 | -10/Mines | Received a Rocket Launcher from a helpful Derelict 561 | -10/Mines | Found a hidden stash of uninstalled traps 633 | -10/Mines | Assembled infested the area 635 | -10/Mines | Entered Materials 635 | -9/Materials | Evolved 2 slots: Propulsion x1, Utility x1 1032 | -9/Materials | Discovered new exit (range 13) 1120 | -9/Materials | Core integrity fell below 50% 1144 | -9/Materials | Lost 7 parts (1p3n3w) 1349 | -9/Materials | Entered Mines 1359 | -9/Mines | A Derelict revealed a hidden shortcut to a safe place 1367 | -9/Mines | Excavation squad dispatched 1367 | -9/Mines | A large section of the Mines collapsed 1617 | -9/Mines | Excavation squad dispatched 1686 | -9/Mines | Core integrity fell below 20% 1813 | -9/Mines | Build established: Scavenger-Mutant 1895 | -9/Mines | Learned Materials garrison access intel 2050 | -9/Mines | Learned Materials garrison access intel 2056 | -9/Mines | Discovered new exit (range 6) 2106 | -9/Mines | Discovered new exit (range 13) 2108 | -9/Mines | Met a Derelict testing a Signal Generator 2349 | -9/Mines | Deemed a non-threat by the Exiles lab entrance 2349 | -9/Mines | Discovered new exit (range 5) 2369 | -9/Mines | Entered Exiles 2369 | -9/Exiles | Accompanied by 2 allies 2399 | -9/Exiles | Led the pair of lost Derelicts to a safe place 2400 | -9/Exiles | Met 8R-AWN 2414 | -9/Exiles | Met EX-HEX 2440 | -9/Exiles | Met EX-BIN 2449 | -9/Exiles | Aligned with FarCom system 2450 | -9/Exiles | Given EX-Vault access code 2470 | -9/Exiles | Opened EX-Vault 2476 | -9/Exiles | Found PSU Rigger 2494 | -9/Exiles | Warned to stay clear of 0b10 Research branches 2517 | -9/Exiles | Met EX-DEC 2525 | -9/Exiles | Learned location of Zion (-7) 2644 | -9/Exiles | Discovered new exit (range 14) 2647 | -9/Exiles | Build established: Mutant 2657 | -9/Exiles | Left Exiles lab with PSU Rigger 2657 | -9/Exiles | Entered Mines 2792 | -8/Mines | Destroyed by G-47 Trooper with Particle Gun Last Messages --------------- LOCATION=UNKNOWN GOAL=ESCAPE 02657_ Receiving FarCom transmissions... 02658_ K-01 Serf collects debris. 02672_ K-01 Serf destroyed. 02676_ Extracted 3 matter. 02677_ Acquired 21 matter. 02679_ K-01 Serf collects debris. 02681_ Dropped Wheel. 02682_ Acquired Wheel. 02691_ K-01 Serf collects debris. 02696_ System corrupted: FCS attempts to trigger Sml. Laser. 02696_ System corrupted: Sml. Laser misfires. 02716_ :L<>D0RRIU5B MF:|